fUSD/lending_fUSD_20250505
["ID","MTS","AMOUNT","RATE_DAILY","PERIOD"]
[359994316,1746467440531,-4432.32,0.00019999,2]
[359994317,1746467440541,-4432.32,0.00019999,2]
[359994318,1746467440550,-4432.32,0.00019999,2]
[359994319,1746467440559,-4432.32,0.00019999,2]
[359994320,1746467440569,-4432.32,0.00019999,2]
[359994321,1746467440578,-4432.32,0.00019999,2]
[359994322,1746467440588,-4432.32,0.00019999,2]
[359994323,1746467440600,-4432.32,0.00019999,2]
[359994324,1746467440609,-4432.32,0.00019999,2]
[359994325,1746467440619,-4432.32,0.00019999,2]
[359994326,1746467440628,-450.0,0.00019999,2]
[359994327,1746467440637,-258.99,0.00019999,2]
[359994328,1746467440650,-4432.32,0.00019999,2]
[359994329,1746467440659,-4432.32,0.00019999,2]
[359994330,1746467440669,-4432.32,0.00019999,2]
[359994331,1746467440678,-4432.37000022,0.00019999,2]
[359994332,1746467440688,-450.0,0.00019999,2]
[359994333,1746467440698,-450.0,0.00019999,2]
[359994334,1746467440709,-450.0,0.00019999,2]
[359994335,1746467440720,-450.0,0.00019999,2]
[359994336,1746467440733,-450.0,0.00019999,2]
[359994337,1746467440744,-450.0,0.00019999,2]
[359994338,1746467440755,-450.0,0.00019999,2]
[359994339,1746467440765,-450.0,0.00019999,2]
[359994340,1746467440774,-450.0,0.00019999,2]
[359994341,1746467440784,-450.0,0.00019999,2]
[359994342,1746467440793,-450.0,0.00019999,2]
[359994343,1746467440802,-257.396582,0.00019999,2]
[359994344,1746467440812,-450.0,0.00019999,2]
[359994345,1746467440823,-667.64,0.00019999,2]
[359994346,1746467440834,-667.64,0.00019999,2]
[359994347,1746467440844,-667.64,0.00019999,2]
[359994348,1746467440854,-667.64,0.00019999,2]
[359994349,1746467440865,-667.64,0.00019999,2]
[359994350,1746467440874,-667.64,0.00019999,2]
[359994351,1746467440884,-667.64,0.00019999,2]
[359994352,1746467440895,-667.64,0.00019999,2]
[359994353,1746467440904,-667.64,0.00019999,2]
[359994354,1746467440916,-667.64,0.00019999,2]
[359994355,1746467440925,-667.64,0.00019999,2]
[359994356,1746467440935,-667.64,0.00019999,2]
[359994357,1746467441079,-667.64,0.00019999,2]
[359994358,1746467441089,-667.64,0.00019999,2]
[359994359,1746467441099,-667.64,0.00019999,2]
[359994360,1746467441112,-667.64,0.00019999,2]
[359994361,1746467441124,-667.64,0.00019999,2]
[359994362,1746467441134,-667.64,0.00019999,2]
[359994363,1746467441147,-667.64,0.00019999,2]
[359994364,1746467441158,-667.64,0.00019999,2]
[359994365,1746467441168,-667.64,0.00019999,2]
[359994366,1746467441178,-667.64,0.00019999,2]
[359994367,1746467441187,-667.72,0.00019999,2]
[359994368,1746467441197,-500.0,0.00019999,2]
[359994369,1746467441208,-500.0,0.00019999,2]
[359994370,1746467441217,-500.0,0.00019999,2]
[359994371,1746467441226,-500.0,0.00019999,2]
[359994372,1746467441235,-500.0,0.00019999,2]
[359994373,1746467441244,-500.0,0.00019999,2]
[359994374,1746467441253,-164.76806058,0.00019999,2]
[359994375,1746467441270,-317.02061334,0.00019999,2]
[359994376,1746467441293,-450.0,0.00019998,2]
[359994377,1746467441302,-18.21132608,0.00019999,2]
[359994378,1746467441311,-500.0,0.00019999,2]
[359994379,1746467441320,-173.91356951,0.00019999,2]
[359994380,1746467441331,-326.08643049,0.00019999,2]
[359994381,1746467441340,-500.0,0.00019999,2]
[359994382,1746467441349,-500.0,0.00019999,2]
[359994383,1746467441358,-500.0,0.00019999,2]
[359994384,1746467441367,-500.0,0.00019999,2]
[359994385,1746467441376,-500.0,0.00019999,2]
[359994386,1746467441385,-389.40341797,0.00019999,2]
[359994387,1746467441395,-450.0,0.00019999,2]
[359994388,1746467441404,-362.75,0.00019999,2]
[359994389,1746467441414,-448.23759254,0.00019999,2]
[359994390,1746467441503,-175.95099402,0.000199,2]
[359994391,1746467441514,-1.76240746,0.00019999,2]
[359994392,1746467441524,-450.0,0.00019999,2]
[359994393,1746467441534,-450.0,0.00019999,2]
[359994394,1746467441544,-450.0,0.00019999,2]
[359994395,1746467441554,-450.0,0.00019999,2]
[359994396,1746467441564,-262.10999999,0.00019999,2]
[359994397,1746467441572,-450.0,0.00019999,2]
[359994398,1746467441581,-450.0,0.00019999,2]
[359994399,1746467441593,-450.0,0.00019999,2]
[359994400,1746467441604,-286.38,0.00019999,2]
[359994401,1746467441613,-450.0,0.00019999,2]
[359994402,1746467441623,-450.0,0.00019999,2]
[359994403,1746467441632,-450.0,0.00019999,2]
[359994404,1746467441642,-450.0,0.00019999,2]
[359994405,1746467441654,-450.0,0.00019999,2]
[359994406,1746467441664,-450.0,0.00019999,2]
[359994407,1746467441673,-538.81,0.00019999,2]
[359994408,1746467441682,-450.0,0.00019999,2]
[359994409,1746467441693,-450.0,0.00019999,2]
[359994410,1746467441702,-450.0,0.00019999,2]
[359994411,1746467441711,-450.0,0.00019999,2]
[359994412,1746467441723,-450.0,0.00019999,2]
[359994413,1746467441732,-450.0,0.00019999,2]
[359994414,1746467441741,-450.0,0.00019999,2]
[359994415,1746467441750,-450.0,0.00019999,2]
[359994416,1746467441759,-450.0,0.00019999,2]
[359994417,1746467441769,-450.0,0.00019999,2]
[359994418,1746467441778,-544.95999999,0.00019999,2]
[359994419,1746467441788,-450.0,0.00019999,2]
[359994420,1746467441797,-450.0,0.00019999,2]
[359994421,1746467441806,-450.0,0.00019999,2]
[359994422,1746467441815,-450.0,0.00019999,2]
[359994423,1746467441827,-450.0,0.00019999,2]
[359994424,1746467441836,-450.0,0.00019999,2]
[359994425,1746467441845,-450.0,0.00019999,2]
[359994426,1746467441855,-450.0,0.00019999,2]
[359994427,1746467441864,-450.0,0.00019999,2]
[359994428,1746467441872,-450.0,0.00019999,2]
[359994429,1746467441882,-450.0,0.00019999,2]
[359994430,1746467441891,-450.0,0.00019999,2]
[359994431,1746467441900,-450.0,0.00019999,2]
[359994432,1746467441910,-261.5,0.00019999,2]
[359994433,1746467441919,-551.34,0.00019999,2]
[359994434,1746467441928,-3113.78,0.00019999,2]
[359994435,1746467441936,-3113.78,0.00019999,2]
[359994436,1746467441946,-3113.78,0.00019999,2]
[359994437,1746467441956,-3113.78,0.00019999,2]
[359994438,1746467441966,-3113.78,0.00019999,2]
[359994439,1746467441975,-3113.78,0.00019999,2]
[359994440,1746467441984,-3113.78,0.00019999,2]
[359994441,1746467441993,-3113.78,0.00019999,2]
[359994442,1746467442002,-3113.78,0.00019999,2]
[359994443,1746467442012,-3113.78,0.00019999,2]
[359994444,1746467442021,-3113.78,0.00019999,2]
[359994445,1746467442029,-3113.78,0.00019999,2]
[359994446,1746467442038,-3113.78,0.00019999,2]
[359994447,1746467442047,-3113.78,0.00019999,2]
[359994448,1746467442056,-3113.78,0.00019999,2]
[359994449,1746467442065,-3113.78,0.00019999,2]
[359994450,1746467442074,-3113.78,0.00019999,2]
[359994451,1746467442083,-3113.78,0.00019999,2]
[359994452,1746467442092,-450.0,0.00019999,2]
[359994453,1746467442101,-3113.78,0.00019999,2]
[359994454,1746467442110,-506.92,0.00019999,2]
[359994455,1746467442119,-524.13,0.00019999,2]
[359994456,1746467442128,-3113.78,0.00019999,2]
[359994457,1746467442137,-3113.78,0.00019999,2]
[359994458,1746467442146,-3113.78,0.00019999,2]
[359994459,1746467442155,-3113.89544048,0.00019999,2]
[359994460,1746467442165,-450.0,0.00019999,2]
[359994461,1746467442174,-450.0,0.00019999,2]
[359994462,1746467442183,-450.0,0.00019999,2]
[359994463,1746467442193,-406.89,0.00019999,2]
[359994464,1746467442202,-758.09,0.00019999,2]
[359994465,1746467442211,-758.09,0.00019999,2]
[359994466,1746467442220,-758.09,0.00019999,2]
[359994467,1746467442228,-758.09,0.00019999,2]
[359994468,1746467442241,-758.09,0.00019999,2]
[359994469,1746467442250,-758.09,0.00019999,2]
[359994470,1746467442259,-470.0,0.00019999,2]
[359994471,1746467442271,-758.09,0.00019999,2]
[359994472,1746467442280,-758.09,0.00019999,2]
[359994473,1746467442289,-758.09,0.00019999,2]
[359994474,1746467442299,-758.09,0.00019999,2]
[359994475,1746467442308,-758.09,0.00019999,2]
[359994476,1746467442317,-758.09,0.00019999,2]
[359994477,1746467442327,-758.09,0.00019999,2]
[359994478,1746467442336,-450.0,0.00019999,2]
[359994479,1746467442345,-758.09,0.00019999,2]
[359994480,1746467442355,-392.52,0.00019999,2]
[359994481,1746467442365,-758.09,0.00019999,2]
[359994482,1746467442375,-758.09,0.00019999,2]
[359994483,1746467442384,-758.09,0.00019999,2]
[359994484,1746467442393,-758.09,0.00019999,2]
[359994485,1746467442403,-758.09,0.00019999,2]
[359994486,1746467442412,-758.09,0.00019999,2]
[359994487,1746467442422,-758.09,0.00019999,2]
[359994488,1746467442431,-758.09,0.00019999,2]
[359994489,1746467442441,-758.31,0.00019999,2]
[359994490,1746467442451,-450.0,0.00019999,2]
[359994491,1746467442460,-450.0,0.00019999,2]
[359994492,1746467442469,-450.0,0.00019999,2]
[359994493,1746467442479,-450.0,0.00019999,2]
[359994494,1746467442488,-450.0,0.00019999,2]
[359994495,1746467442497,-157.85,0.00019999,2]
[359994496,1746467442510,-506.82,0.00019999,2]
[359994497,1746467442525,-770.84,0.00019999,2]
[359994498,1746467442538,-450.0,0.00019999,2]
[359994499,1746467442550,-450.0,0.00019999,2]
[359994500,1746467442561,-770.84,0.00019999,2]
[359994501,1746467442573,-770.84,0.00019999,2]
[359994502,1746467442584,-450.0,0.00019999,2]
[359994503,1746467442598,-770.84,0.00019999,2]
[359994504,1746467442613,-450.0,0.00019999,2]
[359994505,1746467442625,-770.84,0.00019999,2]
[359994506,1746467442637,-450.0,0.00019999,2]
[359994507,1746467442652,-770.84,0.00019999,2]
[359994508,1746467442664,-348.86,0.00019999,2]
[359994509,1746467442675,-770.84,0.00019999,2]
[359994510,1746467442689,-770.84,0.00019999,2]
[359994511,1746467442701,-770.84,0.00019999,2]
[359994512,1746467442712,-770.84,0.00019999,2]
[359994513,1746467442724,-770.84,0.00019999,2]
[359994514,1746467442735,-770.84,0.00019999,2]
[359994515,1746467442745,-770.84,0.00019999,2]
[359994516,1746467442756,-770.84,0.00019999,2]
[359994517,1746467442769,-770.84,0.00019999,2]
[359994518,1746467442781,-770.84,0.00019999,2]
[359994519,1746467442792,-770.84,0.00019999,2]
[359994520,1746467442804,-770.84,0.00019999,2]
[359994522,1746467442816,-450.0,0.00019999,2]
[359994524,1746467442827,-770.84,0.00019999,2]
[359994526,1746467442839,-770.84,0.00019999,2]
[359994528,1746467442851,-770.84,0.00019999,2]
[359994529,1746467442863,-770.84,0.00019999,2]
[359994531,1746467442875,-770.94,0.00019999,2]
[359994533,1746467442886,-450.0,0.00019999,2]
[359994534,1746467442897,-450.0,0.00019999,2]
[359994535,1746467442910,-450.0,0.00019999,2]
[359994537,1746467442922,-450.0,0.00019999,2]
[359994538,1746467442934,-182.01186499,0.00019999,2]
[359994539,1746467442946,-226.13,0.00019999,2]
[359994540,1746467442958,-450.0,0.00019999,2]
[359994541,1746467442969,-450.0,0.00019999,2]
[359994542,1746467442979,-450.0,0.00019999,2]
[359994543,1746467442990,-450.0,0.00019999,2]
[359994544,1746467443001,-450.0,0.00019999,2]
[359994545,1746467443013,-409.02,0.00019999,2]
[359994546,1746467443026,-450.0,0.00019999,2]
[359994548,1746467443037,-450.0,0.00019999,2]
[359994551,1746467443048,-453.23,0.00019999,2]
[359994553,1746467443059,-450.0,0.00019999,2]
[359994554,1746467443070,-450.0,0.00019999,2]
[359994555,1746467443079,-450.0,0.00019999,2]
[359994556,1746467443089,-450.0,0.00019999,2]
[359994557,1746467443100,-779.0,0.0002,2]
[359994559,1746467443111,-112798.89788023,0.0002,2]
[359994560,1746467443121,-305918.49379776,0.0002,2]
[359994561,1746467443144,-693.54622593,0.0002,2]
[359994562,1746467443159,-334.24466693,0.0002,2]
[359994563,1746467443171,-543.25947177,0.0002,2]
[359994564,1746467443182,-1895.193,0.0002,2]
[359994565,1746467443194,-9559.96636083,0.0002,2]
[359994566,1746467443208,-4970.06954993,0.0002,2]
[359994567,1746467443301,-450.0,0.00019998,2]
[359994568,1746467443312,-450.0,0.00019998,2]
[359994569,1746467443323,-450.0,0.00019998,2]
[359994570,1746467443334,-448.96272787,0.00019998,2]
[359994571,1746467443345,-576.97,0.00019999,2]
[359994572,1746467443356,-450.0,0.00019999,2]
[359994573,1746467443369,-450.0,0.00019999,2]
[359994574,1746467443379,-450.0,0.00019999,2]
[359994575,1746467443391,-450.0,0.00019999,2]
[359994576,1746467443401,-450.0,0.00019999,2]
[359994577,1746467443412,-233.51,0.00019999,2]
[359994578,1746467443423,-1282.09467905,0.0002,2]
[359994579,1746467443436,-112123.35804859,0.0002,2]
[359994585,1746467446188,-175.95099402,0.000199,2]
[359994586,1746467446198,-450.0,0.00019998,2]
[359994587,1746467446209,-143.91455718,0.00019998,2]
[359994588,1746467446222,-4624.00544282,0.00019998,2]
[359994589,1746467446233,-450.0,0.00019999,2]
[359994590,1746467446243,-241.03,0.00019999,2]
[359994591,1746467446252,-14086.09104004,0.0002,2]
[359994592,1746467446264,-580.466,0.0002,2]
[359994593,1746467446281,-1649.344377,0.00019999,2]
[359994594,1746467446372,-2401.0585068,0.00019999,2]
[359994602,1746467501660,3042.81,0.00019333,2]
[359994603,1746467537433,200.0,0.00030136,120]
[359994605,1746467557306,250.0,0.00019071,2]
[359994606,1746467572866,306.0,0.00030136,120]
[359994607,1746467794458,250.0,0.00017,2]
[359994608,1746467795712,250.0,0.00019,2]
[359994609,1746467795736,50.0,0.00019,2]
[359994610,1746467812677,1003.0,0.00030136,120]
[359994611,1746467835909,790.815156,0.0001948,2]
[359994612,1746467857247,5115.542,0.0003,30]
[359994613,1746467863785,1000.0,0.00018995,2]
[359994614,1746467885002,-166.69,0.00019578,2]
[359994615,1746467885024,-83.31,0.00019639,2]
[359994616,1746468037069,2000.0,0.0003,30]
[359994617,1746468243890,-200.0,0.0001962,2]
[359994618,1746468243913,-41.56370702,0.00019629,2]
[359994619,1746468258316,-158.43629298,0.00019629,2]
[359994620,1746468258339,-104.40811775,0.00019629,2]
[359994621,1746468266347,-145.59188225,0.00019629,2]
[359994622,1746468345004,-250.9395692,0.00019601,2]
[359994623,1746468345739,737.71,0.00017089,2]
[359994624,1746468345958,737.71,0.00019353,2]
[359994625,1746468351195,-190.04801037,0.00019601,2]
[359994626,1746468353849,-123.39251743,0.00019601,2]
[359994627,1746468356867,154.51,0.00019007,2]
[359994628,1746468405167,150.0,0.00019064,2]
[359994637,1746468494980,192.11,0.00019064,2]
[359994638,1746468495723,192.11,0.00026213,120]
[359994639,1746468495992,192.11,0.00028596,120]
[359994645,1746468578350,500.0,0.0003,30]
[359994649,1746468593013,1901.3,0.00030137,120]
[359994655,1746468632193,-302.5557898,0.00019799,2]
[359994656,1746468632202,-97.28808448,0.000198,2]
[359994751,1746468635966,195.15,0.00019001,2]
[359994760,1746468638201,-102.71191552,0.000198,2]
[359994761,1746468638210,-596.55576855,0.00019825,2]
[359994762,1746468638220,-500.0,0.00019836,2]
[359994763,1746468638230,-500.0,0.00019836,2]
[359994764,1746468638240,-509.0,0.00019836,2]
[359994765,1746468638249,-596.55576856,0.00019873,2]
[359994766,1746468638259,-300.0,0.00019891,2]
[359994767,1746468638270,-585.09880996,0.00019892,2]
[359994768,1746468638282,-290.55383151,0.00019892,2]
[359994798,1746468640348,-324.34735853,0.00019892,2]
[359994799,1746468640358,-300.0,0.00019892,2]
[359994800,1746468640367,-1141.0,0.00019893,2]
[359994801,1746468640377,-5931.0,0.00019893,2]
[359994802,1746468640386,-167.66750036,0.00019898,2]
[359994803,1746468640395,-167.66750036,0.00019898,2]
[359994804,1746468640404,-167.66750036,0.00019899,2]
[359994805,1746468640413,-167.66750036,0.00019899,2]
[359994806,1746468640422,-159.1770528,0.00019899,2]
[359994807,1746468640431,-163.53759442,0.00019899,2]
[359994808,1746468640440,-167.66750036,0.00019899,2]
[359994809,1746468640450,-159.1770528,0.00019899,2]
[359994810,1746468640459,-167.66750036,0.00019899,2]
[359994811,1746468640469,-159.1770528,0.000199,2]
[359994812,1746468640479,-167.66750036,0.000199,2]
[359994813,1746468640488,-159.1770528,0.000199,2]
[359994814,1746468640497,-243.1055785,0.000199,2]
[359994815,1746468640507,-159.1770528,0.000199,2]
[359994816,1746468640517,-344.32243921,0.000199,2]
[359994817,1746468640527,-167.66750036,0.000199,2]
[359994818,1746468640536,-207.4,0.00019913,2]
[359994819,1746468640546,-625.0,0.00019925,2]
[359994820,1746468640556,-797.0,0.00019925,2]
[359994821,1746468640566,-547.0,0.00019925,2]
[359994822,1746468640576,-915.0,0.00019925,2]
[359994823,1746468640586,-578.0,0.00019925,2]
[359994824,1746468640596,-1452.0,0.00019925,2]
[359994825,1746468640606,-500.0,0.00019973,2]
[359994826,1746468640615,-300.15904,0.00019973,2]
[359994827,1746468640625,-500.0,0.00019973,2]
[359994828,1746468640634,-614.27831543,0.00019973,2]
[359994829,1746468640644,-500.0,0.00019973,2]
[359994830,1746468640654,-2385.036,0.00019985,2]
[359994831,1746468640663,-179.984,0.00019985,2]
[359994832,1746468640673,-6485.5260896,0.00019986,2]
[359994833,1746468640682,-332.4382938,0.00019986,2]
[359994834,1746468640691,-2972.0467789,0.00019986,2]
[359994835,1746468640701,-39451.5017227,0.00019986,2]
[359994836,1746468640711,-329.3431008,0.00019986,2]
[359994837,1746468640721,-4033.9,0.00019989,2]
[359994838,1746468640731,-554.89482808,0.00019996,2]
[359994839,1746468640740,-213.95795783,0.00019996,2]
[359994840,1746468640749,-34169.34559348,0.00019997,2]
[359994841,1746468640759,-450.0,0.00019997,2]
[359994842,1746468640768,-450.0,0.00019997,2]
[359994843,1746468640778,-450.0,0.00019997,2]
[359994844,1746468640788,-450.0,0.00019997,2]
[359994845,1746468640798,-450.0,0.00019997,2]
[359994846,1746468640807,-450.0,0.00019997,2]
[359994847,1746468640817,-450.0,0.00019997,2]
[359994848,1746468640826,-450.0,0.00019997,2]
[359994850,1746468640836,-450.0,0.00019997,2]
[359994851,1746468640845,-450.0,0.00019997,2]
[359994852,1746468640854,-574.63,0.00019997,2]
[359994853,1746468640864,-450.0,0.00019997,2]
[359994854,1746468640873,-450.0,0.00019997,2]
[359994855,1746468640884,-450.0,0.00019997,2]
[359994856,1746468640893,-450.0,0.00019997,2]
[359994857,1746468640902,-450.0,0.00019997,2]
[359994858,1746468640911,-450.0,0.00019997,2]
[359994859,1746468640921,-450.0,0.00019997,2]
[359994860,1746468640931,-450.0,0.00019997,2]
[359994861,1746468640940,-450.0,0.00019997,2]
[359994862,1746468640950,-450.0,0.00019997,2]
[359994863,1746468640959,-450.0,0.00019997,2]
[359994864,1746468640968,-450.0,0.00019997,2]
[359994865,1746468640978,-546.87753967,0.00019997,2]
[359994866,1746468640987,-450.0,0.00019997,2]
[359994867,1746468640996,-450.0,0.00019997,2]
[359994868,1746468641006,-569.23,0.00019997,2]
[359994869,1746468641015,-450.0,0.00019997,2]
[359994870,1746468641024,-518.85,0.00019997,2]
[359994871,1746468641034,-450.0,0.00019997,2]
[359994872,1746468641043,-450.0,0.00019997,2]
[359994873,1746468641052,-450.0,0.00019997,2]
[359994874,1746468641061,-483.95,0.00019997,2]
[359994875,1746468641072,-450.0,0.00019997,2]
[359994876,1746468641082,-450.0,0.00019997,2]
[359994877,1746468641091,-495.37,0.00019997,2]
[359994878,1746468641101,-450.0,0.00019997,2]
[359994879,1746468641111,-450.0,0.00019997,2]
[359994880,1746468641121,-500.0,0.00019997,2]
[359994881,1746468641130,-450.0,0.00019997,2]
[359994882,1746468641139,-150.0,0.00019997,2]
[359994883,1746468641150,-500.0,0.00019997,2]
[359994884,1746468641159,-159.0,0.00019997,2]
[359994885,1746468641169,-200.0,0.00019997,2]
[359994886,1746468641178,-450.0,0.00019997,2]
[359994887,1746468641187,-150.0,0.00019997,2]
[359994888,1746468641199,-450.0,0.00019997,2]
[359994889,1746468641208,-450.0,0.00019997,2]
[359994890,1746468641219,-450.0,0.00019997,2]
[359994891,1746468641230,-506.82,0.00019997,2]
[359994892,1746468641239,-450.0,0.00019997,2]
[359994893,1746468641248,-450.0,0.00019997,2]
[359994894,1746468641257,-150.0,0.00019997,2]
[359994895,1746468641266,-150.0,0.00019997,2]
[359994896,1746468641275,-5019.05,0.00019997,2]
[359994897,1746468641285,-450.0,0.00019997,2]
[359994898,1746468641294,-192.22,0.00019998,2]
[359994899,1746468641303,-473.63817928,0.00019998,2]
[359994900,1746468641312,-450.0,0.00019998,2]
[359994901,1746468641321,-450.0,0.00019998,2]
[359994902,1746468641330,-450.0,0.00019998,2]
[359994903,1746468641339,-450.0,0.00019998,2]
[359994904,1746468641348,-450.0,0.00019998,2]
[359994905,1746468641357,-450.0,0.00019998,2]
[359994906,1746468641366,-450.0,0.00019998,2]
[359994907,1746468641376,-450.0,0.00019998,2]
[359994908,1746468641385,-450.0,0.00019998,2]
[359994909,1746468641394,-450.0,0.00019998,2]
[359994910,1746468641403,-450.0,0.00019998,2]
[359994911,1746468641412,-450.0,0.00019998,2]
[359994912,1746468641422,-450.0,0.00019998,2]
[359994913,1746468641431,-493.6328716,0.00019998,2]
[359994914,1746468641441,-450.0,0.00019998,2]
[359994915,1746468641451,-450.0,0.00019998,2]
[359994916,1746468641460,-462.17263254,0.00019998,2]
[359994917,1746468641470,-450.0,0.00019998,2]
[359994918,1746468641478,-450.0,0.00019998,2]
[359994919,1746468641488,-203.21997792,0.00019998,2]
[359994920,1746468641497,-450.0,0.00019998,2]
[359994921,1746468641507,-197.08173909,0.00019998,2]
[359994922,1746468641516,-450.0,0.00019998,2]
[359994923,1746468641526,-450.0,0.00019998,2]
[359994924,1746468641535,-258.20845104,0.00019998,2]
[359994925,1746468641545,-450.0,0.00019998,2]
[359994926,1746468641554,-450.0,0.00019998,2]
[359994927,1746468641564,-450.0,0.00019998,2]
[359994928,1746468641574,-300.0,0.00019998,2]
[359994929,1746468641584,-450.0,0.00019998,2]
[359994930,1746468641593,-450.0,0.00019998,2]
[359994931,1746468641602,-450.0,0.00019998,2]
[359994932,1746468641612,-450.0,0.00019998,2]
[359994933,1746468641621,-450.0,0.00019998,2]
[359994934,1746468641630,-450.0,0.00019998,2]
[359994935,1746468641639,-450.0,0.00019998,2]
[359994936,1746468641648,-450.0,0.00019998,2]
[359994937,1746468641657,-450.0,0.00019998,2]
[359994938,1746468641667,-450.0,0.00019998,2]
[359994939,1746468641676,-460.4631633,0.00019998,2]
[359994940,1746468641686,-473.26684363,0.00019998,2]
[359994941,1746468641695,-450.0,0.00019998,2]
[359994942,1746468641704,-450.0,0.00019998,2]
[359994943,1746468641714,-450.0,0.00019998,2]
[359994944,1746468641723,-450.0,0.00019998,2]
[359994945,1746468641732,-450.0,0.00019998,2]
[359994946,1746468641741,-450.0,0.00019998,2]
[359994947,1746468641751,-480.63898003,0.00019998,2]
[359994948,1746468641760,-450.0,0.00019998,2]
[359994949,1746468641769,-511.81,0.00019998,2]
[359994950,1746468641778,-450.0,0.00019998,2]
[359994951,1746468641788,-450.0,0.00019998,2]
[359994952,1746468641956,-450.0,0.00019998,2]
[359994953,1746468641966,-450.0,0.00019998,2]
[359994954,1746468641976,-450.0,0.00019998,2]
[359994955,1746468641986,-450.0,0.00019998,2]
[359994956,1746468641996,-450.0,0.00019998,2]
[359994957,1746468642007,-450.0,0.00019998,2]
[359994958,1746468642017,-450.0,0.00019998,2]
[359994959,1746468642028,-450.0,0.00019998,2]
[359994960,1746468642037,-450.0,0.00019998,2]
[359994961,1746468642046,-450.0,0.00019998,2]
[359994962,1746468642055,-450.0,0.00019998,2]
[359994963,1746468642065,-450.0,0.00019998,2]
[359994964,1746468642077,-502.46,0.00019998,2]
[359994965,1746468642086,-450.0,0.00019998,2]
[359994966,1746468642096,-450.0,0.00019998,2]
[359994967,1746468642105,-200.42588578,0.00019998,2]
[359994968,1746468642115,-450.0,0.00019998,2]
[359994969,1746468642124,-450.0,0.00019998,2]
[359994970,1746468642133,-465.85790691,0.00019998,2]
[359994971,1746468642143,-450.0,0.00019998,2]
[359994972,1746468642152,-450.0,0.00019998,2]
[359994973,1746468642162,-520.0,0.00019998,2]
[359994974,1746468642171,-450.0,0.00019998,2]
[359994975,1746468642180,-450.0,0.00019998,2]
[359994976,1746468642190,-450.0,0.00019998,2]
[359994977,1746468642199,-572.59,0.00019998,2]
[359994978,1746468642208,-494.04,0.00019998,2]
[359994979,1746468642217,-514.41,0.00019998,2]
[359994980,1746468642226,-450.0,0.00019998,2]
[359994981,1746468642235,-450.0,0.00019998,2]
[359994982,1746468642243,-450.0,0.00019998,2]
[359994983,1746468642252,-450.0,0.00019998,2]
[359994984,1746468642262,-450.0,0.00019998,2]
[359994985,1746468642271,-450.0,0.00019998,2]
[359994986,1746468642281,-450.0,0.00019998,2]
[359994987,1746468642290,-450.0,0.00019998,2]
[359994988,1746468642300,-450.0,0.00019998,2]
[359994989,1746468642309,-450.0,0.00019998,2]
[359994990,1746468642318,-450.0,0.00019998,2]
[359994991,1746468642328,-450.0,0.00019998,2]
[359994992,1746468642337,-450.0,0.00019998,2]
[359994993,1746468642345,-450.0,0.00019998,2]